fUST/lending_fUST_20250407
["ID","MTS","AMOUNT","RATE_DAILY","PERIOD"]
[357259805,1743960649187,-631.0,0.00042603,2]
[357259806,1743960649197,-1250.25329881,0.00042647,120]
[357259807,1743960649207,-631.0,0.0004274,2]
[357259808,1743960649219,-1250.25329881,0.00042747,120]
[357259809,1743960649229,-472.9225581,0.00042815,30]
[357259810,1743960649240,-359.8839992,0.00042815,30]
[357259811,1743960649250,-359.8839992,0.00042815,30]
[357259812,1743960649260,-359.8839992,0.00042815,30]
[357259813,1743960649270,-359.8839992,0.00042815,30]
[357259814,1743960649280,-359.8839992,0.00042815,30]
[357259815,1743960649290,-359.8839992,0.00042815,30]
[357259816,1743960649301,-359.8839992,0.00042815,30]
[357259817,1743960649311,-359.8839992,0.00042815,30]
[357259818,1743960649321,-1250.25329881,0.00042847,120]
[357259819,1743960649331,-631.0,0.00042877,2]
[357259820,1743960649340,-4048.15346766,0.00042909,28]
[357259821,1743960649350,-7130.84562868,0.00042934,17]
[357259822,1743960649361,-1250.25329881,0.00042947,120]
[357259823,1743960649371,-194.05390231,0.00042959,2]
[357259824,1743960649382,-1000.0,0.0004296,30]
[357259825,1743960649392,-1000.0,0.0004297,30]
[357259826,1743960649403,-1000.0,0.0004297,30]
[357259827,1743960649414,-1000.0,0.0004298,30]
[357259828,1743960649424,-1000.0,0.0004298,30]
[357259829,1743960649435,-144430.55864454,0.00043,7]
[357259830,1743960649445,-144430.55864454,0.00043,7]
[357259831,1743960649455,-70745.85877219,0.00043,7]
[357259832,1743960649473,-16857.16520675,0.00043,7]
[357259833,1743960649488,-3083.13317663,0.00043,7]
[357259834,1743960649655,-1335.997721,0.000275,2]
[357259835,1743960649665,-200.0,0.00027933,2]
[357259836,1743960649674,-464.002279,0.00028,2]
[357259837,1743960649690,-535.997721,0.00028,2]
[357259838,1743960649699,-790.49644755,0.000285,2]
[357259839,1743960649711,-209.50355245,0.000285,2]
[357259840,1743960649723,-1000.0,0.00029,2]
[357259841,1743960649733,-207.4,0.00029302,2]
[357259842,1743960649743,-215.0738,0.00030671,2]
[357259843,1743960649752,-151.0,0.00035,14]
[357259844,1743960649763,-9569.38816882,0.00043,7]
[357259845,1743960649778,-305.21753407,0.00043,7]
[357259846,1743960649828,-3889.15738495,0.00043,7]
[357259847,1743960650206,-893.81,0.0002999,3]
[357259848,1743960650217,-223.0315306,0.0003204,2]
[357259849,1743960650227,-231.28369723,0.00033409,2]
[357259850,1743960650236,-239.84119403,0.00034778,2]
[357259851,1743960650246,-695.13501389,0.00035999,2]
[357259852,1743960650255,-248.71531821,0.00036147,2]
[357259853,1743960650265,-257.91778498,0.00037516,2]
[357259854,1743960650275,-4914.54678443,0.00043,7]
[357259855,1743960650286,-7468.134,0.00043,7]
[357259856,1743960650298,-1670.380656,0.00043,7]
[357259857,1743960650309,-3268.323343,0.00043,7]
[357259858,1743960650321,-13493.57922979,0.00043,7]
[357259862,1743961484155,-175.89,0.000266,31]
[357259863,1743961484187,-175.89,0.000266,31]
[357259864,1743961484217,-175.89,0.000266,31]
[357259865,1743961484245,-175.89,0.000266,31]
[357259866,1743961484275,-175.89,0.000266,31]
[357259867,1743961484304,-175.89,0.000266,31]
[357259868,1743961484331,-175.89,0.000266,31]
[357259869,1743961484360,-175.89,0.000266,31]
[357259870,1743961484389,-175.89,0.000266,31]
[357259871,1743961484417,-175.89,0.000266,31]
[357259872,1743961484447,-175.89,0.000266,31]
[357259873,1743961484491,-175.89,0.000266,31]
[357259924,1743961781090,667.69155984,0.00022285,30]
[357259976,1743961832083,-426.0842317,0.00022385,2]
[357259978,1743961832094,-162.669405,0.00022884,2]
[357259980,1743961832103,-300.0,0.00022885,2]
[357259982,1743961832113,-1369.82833197,0.00022886,2]
[357259984,1743961832125,-293.36455646,0.00022886,2]
[357260439,1743961837789,-7796.84402887,0.00022886,2]
[357260440,1743961837800,-162.669405,0.00022913,2]
[357260441,1743961837810,-162.669405,0.00022941,2]
[357260442,1743961837819,-162.669405,0.0002297,2]
[357260443,1743961837828,-5352.59910242,0.0002299,2]
[357260444,1743961837837,-162.669405,0.00022998,2]
[357260445,1743961837846,-167.642954,0.0002338,2]
[357260446,1743961837855,-1373.75088982,0.00023643,2]
[357260447,1743961837864,-3198.33282503,0.00023643,2]
[357260448,1743961837873,-10365.48641874,0.00023737,2]
[357260449,1743961837883,-152.0,0.0002377,2]
[357260450,1743961837892,-547.95332408,0.00023772,2]
[357260451,1743961837904,-190.11,0.000238,2]
[357260452,1743961837913,-151.0,0.00023856,2]
[357260453,1743961837923,-151.0,0.00023856,2]
[357260454,1743961837932,-151.0,0.00023856,2]
[357260455,1743961837942,-151.0,0.00023856,2]
[357260456,1743961837952,-151.0,0.00023856,2]
[357260457,1743961837962,-151.0,0.00023856,2]
[357260458,1743961837972,-151.0,0.00023856,2]
[357260459,1743961837982,-192.29,0.00023861,2]
[357260460,1743961837991,-192.29,0.00023861,2]
[357260461,1743961838001,-192.29,0.00023861,2]
[357260462,1743961838011,-192.29,0.00023861,2]
[357260463,1743961838020,-192.29,0.00023861,2]
[357260464,1743961838029,-192.29,0.00023861,2]
[357260465,1743961838039,-192.29,0.00023861,2]
[357260466,1743961838049,-192.29,0.00023861,2]
[357260467,1743961838058,-192.29,0.00023861,2]
[357260468,1743961838068,-192.29,0.00023861,2]
[357260469,1743961838078,-467.77,0.00023861,3]
[357260470,1743961838087,-233.89,0.00023861,3]
[357260471,1743961838097,-701.67,0.00023861,3]
[357260472,1743961838107,-6425.87283705,0.00023871,2]
[357260473,1743961838119,-27331.47613445,0.00023871,2]
[357260474,1743961838129,-500.0,0.00023872,2]
[357260475,1743961838139,-500.0,0.00023872,2]
[357260476,1743961838152,-317.72147661,0.00023872,2]
[357260477,1743961838163,-1071.68283067,0.00023873,2]
[357260478,1743961838176,-500.0,0.00023873,2]
[357260479,1743961838186,-500.0,0.00023873,2]
[357260480,1743961838196,-280.48755935,0.00023873,2]
[357260481,1743961838206,-500.0,0.00023873,2]
[357260482,1743961838217,-500.0,0.00023873,2]
[357260483,1743961838226,-414.50904082,0.00023873,2]
[357260484,1743961838236,-500.0,0.00023873,2]
[357260486,1743961838247,-162.20104245,0.00023873,2]
[357260487,1743961838255,-500.0,0.00023873,2]
[357260489,1743961838264,-500.0,0.00023873,2]
[357260491,1743961838274,-160.02878784,0.00023873,2]
[357260493,1743961838283,-500.0,0.00023873,2]
[357260495,1743961838294,-500.0,0.00023873,2]
[357260497,1743961838304,-500.0,0.00023873,2]
[357260499,1743961838313,-500.0,0.00023873,2]
[357260501,1743961838323,-500.0,0.00023873,2]
[357260502,1743961838334,-534.44279293,0.00023873,2]
[357260504,1743961838344,-603.521637,0.00023873,2]
[357260506,1743961838354,-520.360202,0.00023873,2]
[357260508,1743961838364,-500.0,0.00023873,2]
[357260509,1743961838374,-500.54745208,0.00023873,2]
[357260511,1743961838384,-500.0,0.00023873,2]
[357260513,1743961838395,-500.0,0.00023873,2]
[357260515,1743961838408,-160.94124664,0.00023873,2]
[357260517,1743961838419,-500.0,0.00023873,2]
[357260519,1743961838429,-500.0,0.00023873,2]
[357260521,1743961838439,-500.0,0.00023873,2]
[357260523,1743961838448,-500.0,0.00023873,2]
[357260535,1743961838555,-504.69515223,0.00023873,2]
[357260537,1743961838566,-265.25930081,0.00023873,2]
[357260539,1743961838575,-500.0,0.00023873,2]
[357260541,1743961838584,-500.0,0.00023873,2]
[357260543,1743961838594,-500.0,0.00023873,2]
[357260545,1743961838604,-393.03312515,0.00023873,2]
[357260547,1743961838614,-500.0,0.00023873,2]
[357260549,1743961838623,-439.0307576,0.00023873,2]
[357260551,1743961838633,-506.47159059,0.00023873,2]
[357260553,1743961838643,-500.0,0.00023873,2]
[357260555,1743961838654,-500.0,0.00023873,2]
[357260557,1743961838664,-500.0,0.00023873,2]
[357260559,1743961838673,-253.28155277,0.00023873,2]
[357260561,1743961838683,-502.74187879,0.00023873,2]
[357260563,1743961838693,-500.0,0.00023873,2]
[357260565,1743961838704,-500.0,0.00023873,2]
[357260567,1743961838713,-500.0,0.00023873,2]
[357260569,1743961838723,-151.0,0.00023883,2]
[357260571,1743961838733,-223.44716674,0.00023883,2]
[357260573,1743961838742,-200.0,0.00023883,2]
[357260576,1743961838753,-500.0,0.00023886,2]
[357260578,1743961838763,-1400.0,0.0002389,2]
[357260580,1743961838772,-254.78,0.0002389,3]
[357260582,1743961838781,-40342.42678877,0.000239,2]
[357260584,1743961838793,-123006.12308764,0.000239,2]
[357260586,1743961838804,-206651.45012359,0.000239,2]
[357260588,1743961838814,-3570.76908489,0.000239,5]
[357260590,1743961838824,-500.0,0.0002416,2]
[357260592,1743961838834,-151.0,0.00024431,2]
[357260594,1743961838843,-354.316911,0.00024657,2]
[357260596,1743961838852,-3570.76908486,0.00024693,5]
[357260598,1743961838861,-3763.17298347,0.00024772,2]
[357260600,1743961838871,-284.75716536,0.00024773,2]
[357260602,1743961838880,-500.0,0.00024773,2]
[357260604,1743961838889,-500.0,0.00024773,2]
[357260606,1743961838899,-500.0,0.00024773,2]
[357260608,1743961838909,-500.0,0.00024773,2]
[357260610,1743961838919,-504.18321161,0.00024773,2]
[357260612,1743961838928,-500.0,0.00024773,2]
[357260614,1743961838938,-500.0,0.00024773,2]
[357260616,1743961838947,-10228.8545524,0.000248,2]
[357260618,1743961838957,-420.0,0.00024846,2]
[357260620,1743961838966,-500.0,0.00024873,2]
[357260622,1743961838975,-500.0,0.00024873,2]
[357260624,1743961838984,-500.0,0.00024873,2]
[357260626,1743961838994,-500.0,0.00024873,2]
[357260628,1743961839004,-500.0,0.00024873,2]
[357260630,1743961839013,-500.0,0.00024873,2]
[357260632,1743961839023,-500.0,0.00024873,2]
[357260634,1743961839032,-412.95145342,0.00024873,2]
[357260636,1743961839042,-500.0,0.00024873,2]
[357260638,1743961839051,-500.0,0.00024873,2]
[357260640,1743961839061,-380.44249459,0.00024873,2]
[357260642,1743961839071,-500.0,0.00024873,2]
[357260643,1743961839080,-500.0,0.00024873,2]
[357260644,1743961839090,-852.40454603,0.0002488,2]
[357260645,1743961839100,-202094.79277793,0.000249,2]
[357260669,1743961839984,-1836.92449776,0.000249,2]
[357260670,1743961840000,-3134.78542588,0.000249,2]
[357260671,1743961840011,-9959.16523369,0.000249,2]
[357260672,1743961840023,-22592.98898174,0.000249,2]
[357260673,1743961840033,-151.0,0.00024979,2]
[357260674,1743961840042,-296.42668225,0.00025076,2]
[357260676,1743961840052,-935.54,0.00025231,3]
[357260677,1743961840062,-467.78,0.00025231,3]
[357260678,1743961840072,-207.4,0.00025252,2]
[357260679,1743961840082,-509.56,0.0002526,3]
[357260680,1743961840092,-852.40454603,0.00025363,2]
[357260681,1743961840102,-3570.76908486,0.00025486,6]
[357260682,1743961840112,-151.0,0.00025527,2]
[357260683,1743961840121,-419.28457398,0.00025585,2]
[357260684,1743961840131,-12525.30748765,0.00025585,2]
[357260685,1743961840141,-729.16666667,0.00025585,2]
[357260687,1743961840151,-160.0,0.00025585,2]
[357260688,1743961840163,-267.8476599,0.00026075,2]
[357260689,1743961840179,-3570.76908486,0.00026279,6]
[357260690,1743961840189,-215.0738,0.00026621,2]
[357260691,1743961840199,-1373.75088977,0.00026836,2]
[357260692,1743961840211,-587.0,0.00026974,2]
[357260693,1743961840222,-852.40454603,0.00027028,2]
[357260694,1743961840233,-3570.76908486,0.00027072,7]
[357260695,1743961840244,-7442.29189872,0.00027397,5]
[357260696,1743961840255,-500.0,0.00027397,5]
[357260697,1743961840266,-500.557129,0.000275,2]
[357260699,1743961840276,-3570.76908486,0.00027866,7]
[357260701,1743961840287,-223.0315306,0.0002799,2]
[357260702,1743961840297,-500.0,0.00028164,2]
[357260703,1743961840308,-3570.76908486,0.00028659,8]
[357260704,1743961840318,-852.40454603,0.00028821,2]
[357260705,1743961840330,-2691.7,0.00028831,8]
[357260706,1743961840341,-2691.7,0.00028831,8]
[357260707,1743961840351,-2691.7,0.00028831,8]
[357260708,1743961840361,-2691.7,0.00028831,8]
[357260709,1743961840371,-2691.7,0.00028831,8]
[357260710,1743961840382,-2691.7,0.00028831,8]
[357260711,1743961840392,-2691.7,0.00028831,8]
[357260712,1743961840405,-2691.7,0.00028831,8]
[357260713,1743961840415,-2691.7,0.00028831,8]
[357260714,1743961840426,-2691.7,0.00028831,8]
[357260715,1743961840436,-2691.7,0.00028831,8]
[357260716,1743961840446,-2691.7,0.00028831,8]
[357260717,1743961840456,-2691.7,0.00028831,8]
[357260718,1743961840466,-2691.7,0.00028831,8]
[357260719,1743961840477,-2691.7,0.00028831,8]
[357260720,1743961840487,-2691.7,0.00028831,8]
[357260721,1743961840497,-2691.7,0.00028831,8]
[357260722,1743961840508,-2691.7,0.00028831,8]
[357260723,1743961840518,-2691.7,0.00028831,8]
[357260724,1743961840528,-456.36511578,0.00029,7]
[357260725,1743961840538,-456.36511578,0.00029,7]
[357260726,1743961840548,-553.0,0.00029286,2]
[357260727,1743961840558,-852.40454603,0.00029342,2]
[357260728,1743961840567,-1000.0,0.00029352,5]
[357260729,1743961840577,-163.55268246,0.00029352,5]
[357260730,1743961840587,-500.0,0.00029352,5]
[357260731,1743961840596,-1000.0,0.00029352,2]
[357260732,1743961840606,-500.0,0.00029352,5]
[357260733,1743961840616,-500.0,0.00029352,5]
[357260734,1743961840626,-1000.0,0.00029352,5]
[357260735,1743961840635,-1000.0,0.00029352,5]
[357260736,1743961840644,-1000.0,0.00029352,5]
[357260737,1743961840657,-209.16619909,0.00029352,5]
[357260738,1743961840667,-500.0,0.00029352,5]
[357260739,1743961840676,-500.0,0.00029352,5]
[357260740,1743961840687,-500.0,0.00029352,5]
[357260741,1743961840698,-185.3849883,0.00029352,5]
[357260742,1743961840708,-1000.0,0.00029352,5]
[357260743,1743961840719,-1000.0,0.00029352,5]
[357260744,1743961840729,-500.0,0.00029352,2]
[357260745,1743961840739,-500.0,0.00029352,5]
[357260746,1743961840750,-1000.0,0.00029352,5]
[357260747,1743961840760,-231.28369723,0.00029359,2]
[357260748,1743961840770,-3570.76908486,0.00029452,8]
[357260749,1743961840781,-1011.75,0.0003,2]
[357260750,1743961840791,-252.0,0.0003,2]
[357260751,1743961840801,-1373.75088977,0.0003003,2]
[357260752,1743961840811,-3570.76908486,0.00030245,9]
[357260753,1743961840822,-500.0,0.00030252,5]
[357260754,1743961840833,-1000.0,0.00030252,5]
[357260755,1743961840843,-500.0,0.00030252,5]
[357260756,1743961840852,-1000.0,0.00030252,5]
[357260757,1743961840862,-500.0,0.00030252,5]
[357260758,1743961840872,-1000.0,0.00030352,5]
[357260759,1743961840882,-500.0,0.00030352,5]
[357260760,1743961840892,-1000.0,0.00030352,5]
[357260761,1743961840902,-1000.0,0.00030352,5]
[357260762,1743961840916,-538.130153,0.00030352,5]
[357260763,1743961840926,-500.0,0.00030352,5]
[357260764,1743961840936,-3570.76908486,0.00031038,9]
[357260765,1743961840946,-175.89,0.000313,31]
[357260766,1743961840956,-175.89,0.000313,31]
[357260767,1743961840966,-175.89,0.000313,31]
[357260768,1743961840976,-175.89,0.000313,31]
[357260769,1743961840986,-175.89,0.000313,31]
[357260770,1743961840996,-175.89,0.000313,31]
[357260771,1743961841006,-175.89,0.000313,31]
[357260772,1743961841015,-175.89,0.000313,31]
[357260773,1743961841025,-175.89,0.000313,31]
[357260774,1743961841035,-175.89,0.000313,31]
[357260775,1743961841045,-175.89,0.000313,31]
[357260776,1743961841054,-175.89,0.000313,31]
[357260777,1743961841064,-175.89,0.000313,31]
[357260778,1743961841074,-175.89,0.000313,31]
[357260779,1743961841084,-175.89,0.000313,31]
[357260780,1743961841094,-175.89,0.000313,31]
[357260781,1743961841104,-175.89,0.000313,31]
[357260782,1743961841113,-175.89,0.000313,31]
[357260783,1743961841122,-175.89,0.000313,31]
[357260784,1743961841131,-175.89,0.000313,31]
[357260785,1743961841141,-175.89,0.000313,31]
[357260786,1743961841150,-175.89,0.000313,31]
[357260787,1743961841167,-175.89,0.000313,31]
[357260788,1743961841177,-175.89,0.000313,31]
[357260789,1743961841186,-500.0,0.00031506,10]
[357260790,1743961841196,-3570.76908486,0.00031831,10]
[357260791,1743961841206,-556.208,0.00032076,2]
[357260792,1743961841216,-1478.0,0.00032076,2]
[357260793,1743961841227,-472.186,0.00032076,2]
[357260794,1743961841236,-3570.76908486,0.00032624,10]
[357260795,1743961841246,-1000.0,0.00032877,5]
[357260796,1743961841258,-252.0,0.00033,2]
[357260797,1743961841268,-1373.75088977,0.00033223,2]
[357260798,1743961841277,-3570.76908486,0.00033417,11]
[357260799,1743961841287,-852.40454603,0.0003346,2]
[357260800,1743961841297,-151.0,0.000337,12]
[357260801,1743961841307,-3570.76908486,0.0003421,11]
[357260802,1743961841318,-151.0,0.000349,11]
[357260803,1743961841327,-500.0,0.00035,13]
[357260804,1743961841337,-500.0,0.00035,13]
[357260805,1743961841347,-3570.76908486,0.00035003,12]
[357260806,1743961841356,-542.0,0.00035076,2]
[357260807,1743961841366,-1478.0,0.00035076,2]
[357260808,1743961841376,-401.0,0.00035076,2]
[357260809,1743961841386,-631.0,0.000357,2]
[357260810,1743961841396,-3570.76908486,0.00035797,12]
[357260811,1743961841407,-1000.0,0.0003589,2]
[357260812,1743961841417,-178.18700459,0.00036,30]
[357260813,1743961841427,-252.0,0.00036,2]
[357260814,1743961841436,-175.89,0.000361,31]
[357260815,1743961841446,-175.89,0.000361,31]
[357260816,1743961841456,-175.89,0.000361,31]
[357260817,1743961841465,-175.89,0.000361,31]
[357260818,1743961841475,-175.89,0.000361,31]
[357260819,1743961841485,-175.89,0.000361,31]
[357260820,1743961841494,-175.89,0.000361,31]
[357260821,1743961841504,-175.89,0.000361,31]
[357260822,1743961841514,-175.89,0.000361,31]
[357260823,1743961841523,-175.89,0.000361,31]
[357260824,1743961841532,-175.89,0.000361,31]
[357260825,1743961841542,-175.89,0.000361,31]
[357260826,1743961841552,-175.89,0.000361,31]
[357260827,1743961841562,-175.89,0.000361,31]
[357260828,1743961841571,-175.89,0.000361,31]
[357260829,1743961841582,-175.89,0.000361,31]
[357260830,1743961841591,-175.89,0.000361,31]
[357260831,1743961841602,-175.89,0.000361,31]
[357260832,1743961841612,-175.89,0.000361,31]
[357260833,1743961841622,-175.89,0.000361,31]
[357260834,1743961841632,-175.89,0.000361,31]
[357260835,1743961841642,-175.89,0.000361,31]
[357260836,1743961841653,-175.89,0.000361,31]
[357260837,1743961841666,-175.89,0.000361,31]
[357260838,1743961841676,-201.75659287,0.0003619,10]
[357260839,1743961841686,-154.827,0.0003624,44]
[357260840,1743961841696,-1373.75088977,0.00036417,2]
[357260841,1743961841706,-3570.76908486,0.0003659,13]
[357260842,1743961841716,-3570.76908486,0.00037383,13]
[357260843,1743961841726,-542.0,0.00038076,2]
[357260844,1743961841736,-1478.0,0.00038076,2]
[357260845,1743961841746,-401.0,0.00038076,2]
[357260846,1743961841756,-3570.76908486,0.00038176,14]
[357260847,1743961841766,-1500.0,0.00038356,5]
[357260848,1743961841776,-3570.76908486,0.00038969,14]
[357260849,1743961841785,-151.0,0.000392,16]
[357260850,1743961841795,-852.40454603,0.00039361,3]
[357260851,1743961841805,-1500.0,0.00039371,5]
[357260852,1743961841815,-1500.0,0.00039371,2]
[357260853,1743961841826,-1500.0,0.00039371,5]
[357260854,1743961841836,-1500.0,0.00039371,5]
[357260855,1743961841846,-1500.0,0.00039371,5]
[357260856,1743961841856,-1500.0,0.00039371,5]
[357260857,1743961841866,-1373.75088977,0.0003961,2]
[357260858,1743961841876,-3570.76908486,0.00039762,15]
[357260859,1743961841886,-1500.0,0.00040271,5]
[357260860,1743961841896,-529.98387815,0.00040336,30]
[357260861,1743961841911,-1053.22098026,0.00040371,5]
[357260862,1743961841921,-3570.76908486,0.00040555,15]
[357260863,1743961841931,-175.89,0.000408,31]
[357260864,1743961841941,-175.89,0.000408,31]
[357260865,1743961841951,-175.89,0.000408,31]
[357260866,1743961841962,-175.89,0.000408,31]
[357260867,1743961841972,-175.89,0.000408,31]
[357260868,1743961841983,-175.89,0.000408,31]
[357260869,1743961841994,-175.89,0.000408,31]
[357260870,1743961842004,-175.89,0.000408,31]
[357260871,1743961842015,-175.89,0.000408,31]
[357260872,1743961842025,-175.89,0.000408,31]
[357260873,1743961842035,-175.89,0.000408,31]
[357260874,1743961842045,-175.89,0.000408,31]
[357260875,1743961842055,-175.89,0.000408,31]
[357260876,1743961842066,-175.89,0.000408,31]
[357260877,1743961842076,-175.89,0.000408,31]
[357260878,1743961842086,-175.89,0.000408,31]
[357260879,1743961842096,-175.89,0.000408,31]
[357260880,1743961842105,-175.89,0.000408,31]
[357260881,1743961842236,-175.89,0.000408,31]
[357260882,1743961842247,-175.89,0.000408,31]
[357260883,1743961842259,-175.89,0.000408,31]
[357260884,1743961842270,-175.89,0.000408,31]
[357260885,1743961842280,-175.89,0.000408,31]
[357260886,1743961842290,-175.89,0.000408,31]
[357260887,1743961842300,-200.0,0.0004107,30]
[357260888,1743961842310,-542.0,0.00041076,2]
[357260889,1743961842320,-1372.0,0.00041076,2]
[357260890,1743961842330,-401.0,0.00041076,2]
[357260891,1743961842340,-200.0,0.0004108,30]
[357260892,1743961842350,-200.0,0.0004109,30]
[357260893,1743961842360,-404.52064021,0.00041096,60]
[357260894,1743961842370,-151.0,0.000411,15]
[357260895,1743961842380,-1000.0,0.00041211,120]
[357260896,1743961842390,-3570.76908486,0.00041348,16]
[357260898,1743961842400,-3035.27,0.000415,7]
[357260899,1743961842412,-1074.1547505,0.0004167,4]
[357260901,1743961842422,-3570.76908486,0.00042141,17]
[357260903,1743961842432,-852.40454603,0.00042752,3]
[357260905,1743961842443,-200.0,0.000428,120]
[357260908,1743961842454,-1373.75088977,0.00042804,28]
[357260909,1743961842464,-520.6673619,0.0004292,30]
[357260910,1743961842474,-563.9791657,0.0004292,30]
[357260912,1743961842486,-563.9791657,0.0004292,30]
[357260913,1743961842495,-563.9791657,0.0004292,30]
[357260914,1743961842504,-563.9791657,0.0004292,30]
[357260915,1743961842513,-563.9791657,0.0004292,30]
[357260916,1743961842522,-498.9264818,0.0004292,30]
[357260917,1743961842532,-3570.76908486,0.00042934,17]
[357260918,1743961842541,-153.0,0.00042952,30]
[357260920,1743961842551,-213.2113689,0.00042952,30]
[357260921,1743961842561,-563.9791657,0.00042952,30]
[357260923,1743961842571,-156.5843743,0.00042952,30]
[357260924,1743961842581,-579.27917824,0.00042958,2]
[357260925,1743961842590,-298.88059172,0.00042958,2]
[357260927,1743961842600,-200.0,0.0004296,30]
[357260928,1743961842609,-200.0,0.0004297,30]
[357260930,1743961842619,-200.0,0.0004297,30]
[357260932,1743961842628,-200.0,0.0004298,30]
[357260933,1743961842638,-200.0,0.0004298,30]
[357260934,1743961842647,-500.0,0.00042989,60]
[357260935,1743961842657,-411316.66498009,0.00043,7]
[357260937,1743961842859,184.9046836,0.00013699,2]
[357260938,1743961842898,-1265.27899589,0.00022568,2]
[357260939,1743961842914,-328.45039638,0.00022568,2]
[357260940,1743961842943,-974.19049555,0.00022568,2]
[357260971,1743961843548,-22332.08011218,0.00022568,2]
[357260973,1743961843558,-613.77597759,0.00022784,4]
[357260975,1743961843568,-547.95332408,0.00024049,2]
[357260977,1743961843578,-547.95332408,0.00024326,2]
[357260979,1743961843588,-547.95332408,0.00024602,2]
[357260981,1743961843599,-239.84119403,0.00030728,2]
[357260983,1743961843608,-248.71531821,0.00032097,2]
[357260985,1743961843618,-257.91778498,0.00033466,2]
[357260987,1743961843628,-267.46074303,0.00034835,2]
[357260989,1743961843638,-277.35679052,0.00036204,2]
[357260991,1743961843648,-287.61899177,0.00037573,2]
[357260993,1743961843660,-298.26089446,0.00038942,2]
[357260995,1743961843669,-22630.54870339,0.00043,7]
[357260997,1743961843681,-2651.83459885,0.00043,7]
[357260999,1743961843694,-40750.0,0.00043,7]
[357261351,1743961847770,-547.95332408,0.00024879,2]
[357261353,1743961847779,-309.29654756,0.00040311,2]
[357261355,1743961847789,-320.74051982,0.0004168,2]
[357261357,1743961847798,-764.37,0.0004299,30]
[357261359,1743961847808,-43598.22089078,0.00043,7]
[357261361,1743961847818,-15882.36520109,0.00043,7]
[357261363,1743961847829,-813.876657,0.00043,7]
[357261365,1743961847841,-2604.73064177,0.00043,7]
[357261368,1743961847852,-21470.35736298,0.00043,7]
[357261372,1743961847881,-16225.0,0.00043,7]
[357261468,1743961948548,158.09,0.000266,31]
[357261469,1743961948583,158.09,0.000266,31]
[357261470,1743961948638,158.09,0.000266,31]
[357261471,1743961948708,158.09,0.000266,31]
[357261472,1743961948792,158.09,0.000266,31]
[357261473,1743961948828,158.09,0.000266,31]
[357261474,1743961948894,158.09,0.000266,31]
[357261475,1743961948946,158.09,0.000266,31]
[357261476,1743961949008,158.09,0.000266,31]
[357261477,1743961949071,158.09,0.000266,31]
[357261478,1743961949127,158.09,0.000266,31]
[357261479,1743961949188,158.09,0.000266,31]
[357261489,1743962560864,152.89,0.000266,31]
[357261490,1743962560918,152.89,0.000266,31]
[357261491,1743962560975,152.89,0.000266,31]
[357261492,1743962561038,152.89,0.000266,31]
[357261493,1743962561105,152.89,0.000266,31]
[357261494,1743962561162,152.89,0.000266,31]
[357261495,1743962561231,152.89,0.000266,31]
[357261496,1743962561292,152.89,0.000266,31]
[357261497,1743962561349,152.89,0.000266,31]
[357261498,1743962561411,152.89,0.000266,31]
[357261499,1743962561513,152.89,0.000266,31]
[357261535,1743962852567,174.82652,0.00013699,2]